bitfinex-derivatives/quotes_BTCF0:USTF0_20241120
["timestamp","ask_amount","ask_price","bid_price","bid_amount"]
[1732127135786,0.01235517,93880.0,93871.0,0.04277398]
[1732127136088,0.15519235,93872.0,93868.0,9.947e-05]
[1732127136278,0.053193,93869.0,93868.0,9.947e-05]
[1732127136482,0.15519235,93862.0,93848.0,0.3658]
[1732127136780,0.01235517,93861.0,93847.0,0.053206]
[1732127136982,0.3608,93862.0,93841.0,0.04329757]
[1732127136983,0.3608,93851.0,93841.0,0.04329757]
[1732127137179,0.0197621,93871.0,93847.0,0.15519235]
[1732127137486,0.03234142,93870.0,93868.0,0.053193]
[1732127137795,0.01248754,93869.0,93868.0,0.053193]
[1732127138083,9.178e-05,93870.0,93868.0,0.053193]
[1732127138475,0.01240178,93869.0,93868.0,0.053193]
[1732127139082,0.01240178,93869.0,93868.0,0.09607376]
[1732127139481,0.01240178,93869.0,93867.0,0.1498]
[1732127139680,0.01240178,93869.0,93866.0,0.1498]
[1732127140191,0.01240178,93869.0,93867.0,0.053194]
[1732127142587,0.01240178,93869.0,93868.0,0.0813]
[1732127143491,0.01240178,93869.0,93868.0,0.58700686]
[1732127143687,0.00108944,93891.0,93888.0,0.053182]
[1732127144490,0.00108944,93891.0,93881.0,0.3608]
[1732127144697,0.053185,93883.0,93881.0,0.3608]
[1732127145495,0.00108944,93891.0,93873.0,0.053191]
[1732127145496,0.053186,93882.0,93873.0,0.053191]
[1732127145798,0.053186,93882.0,93861.0,0.6577926]
[1732127145799,0.053187,93881.0,93874.0,0.05319]
[1732127146297,0.3608,93886.0,93874.0,0.05319]
[1732127146493,0.3608,93886.0,93873.0,0.3608]
[1732127146795,0.413984,93886.0,93879.0,0.053187]
[1732127146997,0.3608,93886.0,93874.0,0.44449353]
[1732127147198,0.00108944,93891.0,93884.0,0.053184]
[1732127147497,0.00108944,93891.0,93887.0,0.053183]
[1732127147796,0.05427044,93891.0,93887.0,0.053183]
[1732127148195,0.00108944,93891.0,93881.0,0.3608]
[1732127148395,0.00108944,93891.0,93887.0,0.053183]
[1732127149606,0.053186,93883.0,93881.0,0.3608]
[1732127149810,0.3608,93885.0,93874.0,0.47895862]
[1732127149997,0.3608,93885.0,93883.0,0.053185]
[1732127150185,0.00108944,93891.0,93880.0,0.053187]
[1732127150494,0.053184,93885.0,93873.0,0.5106]
[1732127150694,0.3608,93888.0,93875.0,0.44449353]
[1732127150894,0.053189,93877.0,93876.0,0.44449561]
[1732127151199,0.053189,93877.0,93875.0,0.44449561]
[1732127151494,0.053189,93877.0,93873.0,0.54617041]
[1732127151495,0.05319,93874.0,93873.0,0.5106]
[1732127151694,0.05319,93874.0,93873.0,0.1498]
[1732127152198,0.053194,93868.0,93867.0,0.053194]
[1732127152584,0.3608,93876.0,93863.0,0.44449561]
[1732127152585,0.053196,93865.0,93863.0,0.44449561]
[1732127153207,0.053197,93864.0,93861.0,0.053198]
[1732127153407,0.053197,93863.0,93861.0,0.053198]
[1732127153813,0.3608,93868.0,93856.0,0.053201]
[1732127153814,0.053195,93867.0,93856.0,0.053201]
[1732127154008,0.053195,93867.0,93851.0,0.3608]
[1732127154009,0.3608,93868.0,93857.0,0.0532]
[1732127154215,0.053203,93853.0,93851.0,0.3608]
[1732127154405,0.0532,93858.0,93855.0,0.053201]
[1732127154716,0.0532,93857.0,93855.0,0.053201]
[1732127155509,0.0532,93857.0,93851.0,0.3608]
[1732127155510,0.0413,93872.0,93870.0,0.053193]
[1732127155706,0.094492,93872.0,93870.0,0.053193]
[1732127156220,0.053192,93872.0,93870.0,0.053193]
[1732127156516,0.08775814,93878.0,93860.0,0.14976]
[1732127156714,0.053188,93878.0,93868.0,0.3608]
[1732127156917,0.3608,93884.0,93868.0,0.3608]
[1732127157110,0.053187,93881.0,93868.0,0.3608]
[1732127157515,0.3608,93884.0,93870.0,0.15519235]
[1732127157715,0.00108944,93891.0,93876.0,0.3608]
[1732127157919,0.00108944,93891.0,93888.0,0.053183]
[1732127158122,0.00108944,93891.0,93877.0,0.14976]
[1732127158424,0.05427044,93891.0,93886.0,0.053183]
[1732127158615,0.05427044,93891.0,93878.0,0.50769657]
[1732127159118,0.053182,93889.0,93886.0,0.053183]
[1732127159522,0.053184,93886.0,93880.0,0.053187]
[1732127159708,0.00108944,93891.0,93880.0,0.053187]
[1732127159913,0.053185,93884.0,93882.0,0.053186]
[1732127160108,0.00108944,93891.0,93877.0,0.18544256]
[1732127160324,0.053183,93888.0,93877.0,0.18544256]
[1732127160623,0.00108944,93891.0,93888.0,0.053182]
[1732127160816,0.00108944,93891.0,93877.0,0.18544256]
[1732127161525,0.053183,93887.0,93882.0,0.053185]
[1732127162026,0.053183,93887.0,93885.0,0.053184]
[1732127162619,0.00108944,93891.0,93877.0,0.18544256]
[1732127162620,0.00108944,93891.0,93890.0,0.053181]
[1732127163216,0.0212734,93916.0,93903.0,0.053174]
[1732127163423,0.15519235,93930.0,93902.0,0.3608]
[1732127163621,0.053169,93912.0,93906.0,0.053172]
[1732127163827,0.03530193,93915.0,93904.0,0.35019804]
[1732127164129,0.053166,93917.0,93913.0,0.053168]
[1732127165312,0.0409,93934.0,93916.0,0.15519235]
[1732127165515,0.053164,93922.0,93917.0,0.14972]
[1732127165815,0.053158,93932.0,93917.0,0.14972]
[1732127166228,0.053158,93932.0,93930.0,0.053159]
[1732127166411,0.053158,93932.0,93919.0,0.3608]
[1732127166611,0.03456306,93934.0,93921.0,0.053164]
[1732127166824,0.053161,93927.0,93922.0,0.053163]
[1732127167127,0.053161,93927.0,93923.0,0.053162]
[1732127167326,0.053161,93927.0,93924.0,0.053162]
[1732127168016,0.053164,93920.0,93919.0,0.3608]
[1732127168329,0.053168,93914.0,93910.0,0.14972]
[1732127168527,0.053168,93914.0,93904.0,0.57097449]
[1732127168528,0.053168,93914.0,93908.0,0.053171]
[1732127168727,0.053161,93926.0,93924.0,0.053162]
[1732127168921,0.053158,93931.0,93930.0,0.053158]
[1732127169125,0.3608,93932.0,93931.0,0.053158]
[1732127169424,0.053158,93932.0,93931.0,0.053158]
[1732127170016,0.3608,93938.0,93921.0,0.14972]
[1732127170222,0.053156,93935.0,93934.0,0.053156]
[1732127170418,0.39562175,93938.0,93930.0,0.053158]
[1732127170729,0.39562175,93938.0,93929.0,0.3608]
[1732127170730,0.053154,93938.0,93929.0,0.3608]
[1732127170926,0.3,93939.0,93928.0,0.03497851]
[1732127171134,0.053163,93922.0,93921.0,0.14972]
[1732127171820,0.3608,93936.0,93921.0,0.14972]
[1732127172015,0.3608,93936.0,93919.0,0.3608]
[1732127172229,0.053164,93924.0,93923.0,0.053163]
[1732127172429,0.39591437,93936.0,93920.0,0.14968]
[1732127172729,0.03511437,93936.0,93922.0,0.15519235]
[1732127172922,0.053158,93933.0,93932.0,0.053157]
[1732127173122,0.053148,93950.0,93922.0,0.15519235]
[1732127173333,0.053151,93945.0,93929.0,0.053159]
[1732127173519,0.053159,93930.0,93929.0,0.053159]
[1732127173722,0.15519235,93942.0,93923.0,0.053163]
[1732127173917,0.053161,93926.0,93924.0,0.14968]
[1732127174226,0.053162,93925.0,93924.0,0.14968]
[1732127174527,0.053164,93920.0,93919.0,0.3608]
[1732127174735,0.053164,93920.0,93919.0,0.51048]
[1732127175436,0.3608,93930.0,93913.0,8.316e-05]
[1732127175638,0.053168,93914.0,93913.0,8.316e-05]
[1732127176533,0.053168,93914.0,93913.0,0.05325116]
[1732127177336,0.053168,93914.0,93913.0,8.316e-05]
[1732127179020,0.08722737,93914.0,93913.0,8.316e-05]
[1732127179337,0.44802737,93914.0,93913.0,8.316e-05]
[1732127179531,0.44802737,93914.0,93889.0,0.005]
[1732127179532,1.01429937,93914.0,93889.0,0.005]
[1732127179729,1.01429937,93914.0,93885.0,0.36239759]
[1732127179730,0.3608,93899.0,93885.0,0.00159759]
[1732127179936,0.3608,93899.0,93886.0,0.15625235]
[1732127180237,0.69485937,93914.0,93896.0,0.15519235]
[1732127180434,0.74802737,93914.0,93905.0,0.053173]
[1732127180629,9.085e-05,93913.0,93902.0,0.3608]
[1732127181035,9.085e-05,93913.0,93910.0,0.05317]
[1732127181535,9.085e-05,93913.0,93912.0,0.053169]
[1732127183635,0.053156,93936.0,93923.0,0.053162]
[1732127183835,0.053156,93936.0,93925.0,0.3608]
[1732127184142,0.053157,93933.0,93925.0,0.3608]
[1732127184339,0.0415,93937.0,93925.0,0.3608]
[1732127184531,0.053155,93937.0,93925.0,0.3608]
[1732127185140,0.3608,93941.0,93925.0,0.3608]
[1732127185441,0.3608,93941.0,93932.0,0.053158]
[1732127185641,0.3608,93941.0,93926.0,0.0397]
[1732127185843,0.053155,93937.0,93926.0,0.0397]
[1732127186338,0.39481247,93941.0,93925.0,0.3959065]
[1732127186661,0.053159,93930.0,93925.0,0.3959065]
[1732127186825,0.05316,93928.0,93925.0,0.3959065]
[1732127187023,0.3608,93926.0,93925.0,0.0351065]
[1732127187228,0.053162,93925.0,93911.0,0.51036]
[1732127187536,0.053154,93939.0,93933.0,0.053157]
[1732127187731,0.053154,93939.0,93927.0,0.14956]
[1732127188244,0.053154,93939.0,93927.0,0.51036]
[1732127188635,0.33401247,93941.0,93927.0,0.51036]
[1732127189139,0.3,93941.0,93939.0,0.053153]
[1732127189728,0.053149,93948.0,93939.0,0.053153]
[1732127190342,0.053149,93948.0,93940.0,0.053153]
[1732127190934,0.053149,93948.0,93941.0,0.053152]
[1732127191645,0.39620614,93951.0,93945.0,0.05315]
[1732127191846,0.3608,93969.0,93950.0,0.15519235]
[1732127192027,0.4043,93969.0,93954.0,0.3608]
[1732127192233,0.413937,93969.0,93954.0,0.3608]
[1732127192739,0.413937,93969.0,93962.0,0.05314]
[1732127192943,0.053138,93968.0,93962.0,0.05314]
[1732127193736,0.3608,93969.0,93954.0,0.3608]
[1732127193932,0.053141,93962.0,93954.0,0.3608]
[1732127194141,0.39624493,93969.0,93954.0,0.3608]
[1732127194345,0.39624493,93969.0,93962.0,0.15519235]
[1732127194531,0.03544493,93969.0,93962.0,0.15519235]
[1732127194740,0.3608,93987.0,93967.0,0.053138]
[1732127195037,0.01226434,93986.0,93969.0,0.053136]
[1732127195248,0.053132,93978.0,93971.0,0.053135]
[1732127195439,0.3608,93987.0,93971.0,0.053135]
[1732127195637,0.053133,93976.0,93971.0,0.053135]
[1732127195833,0.053133,93976.0,93970.0,0.14956]
[1732127196036,0.3608,93985.0,93970.0,0.14956]
[1732127196230,0.05313,93981.0,93978.0,0.053131]
[1732127196438,0.053127,93987.0,93973.0,0.15519235]
[1732127196655,0.053127,93987.0,93985.0,0.053127]
[1732127196840,0.03470301,93994.0,93986.0,0.14956]
[1732127197045,0.0842,94009.0,93991.0,0.15519235]
[1732127197237,0.0212584,94028.0,93999.0,0.15519235]
[1732127197440,0.053114,94009.0,93999.0,0.15519235]
[1732127198049,0.03520432,94008.0,93998.0,0.05312]
[1732127198353,0.053119,94001.0,93998.0,0.05312]
[1732127198551,0.053115,94008.0,93999.0,0.15519235]
[1732127198738,0.053115,94008.0,93999.0,0.51599235]
[1732127199052,0.3608,94019.0,93999.0,0.66551235]
[1732127199053,0.053119,94001.0,93999.0,0.66551235]
[1732127199239,0.053119,94001.0,93999.0,0.51599235]
[1732127199445,0.053124,93992.0,93990.0,0.3608]
[1732127199649,0.053124,93992.0,93991.0,0.14952]
[1732127200954,0.153119,94000.0,93991.0,0.30471235]
[1732127201247,0.1,94000.0,93999.0,0.15519235]
[1732127201547,0.02124983,94015.0,94014.0,0.053111]
[1732127201754,0.07436083,94015.0,94014.0,0.14952]
[1732127202350,0.053112,94014.0,94013.0,0.14952]
[1732127202537,0.413912,94014.0,94013.0,0.14952]
[1732127203645,0.3608,94014.0,94008.0,0.15519235]
[1732127203848,0.053114,94010.0,94009.0,0.14948]
[1732127204144,0.3608,94014.0,94007.0,0.14948]
[1732127204347,0.3608,94014.0,93993.0,0.053123]
[1732127204348,0.053122,93996.0,93993.0,0.053123]
[1732127204550,0.053122,93995.0,93994.0,0.14948]
[1732127204746,0.053126,93988.0,93986.0,0.3608]
[1732127204943,0.053128,93984.0,93983.0,0.14948]
[1732127205640,0.0863,94002.0,93983.0,0.14948]
[1732127205641,0.03501945,93996.0,93983.0,0.14948]
[1732127205840,0.0863,94002.0,93980.0,0.15107579]
[1732127205841,0.05313,93981.0,93980.0,0.15107579]
[1732127207142,0.3608,93988.0,93980.0,0.15107579]
[1732127207143,0.053127,93987.0,93983.0,0.053129]
[1732127207350,0.053127,93987.0,93984.0,0.053128]
[1732127207553,0.3608,93987.0,93986.0,0.053127]
[1732127207958,0.3608,93987.0,93980.0,0.15107579]
[1732127207959,0.053125,93990.0,93980.0,0.15107579]
[1732127208155,0.5,94000.0,93986.0,0.3608]
[1732127208347,0.5,94000.0,93999.0,0.05312]
[1732127208655,0.5,94000.0,93999.0,0.2026]
[1732127209142,0.5,94000.0,93999.0,0.14948]
[1732127209339,0.053125,93990.0,93986.0,0.053127]
[1732127209551,0.3608,93994.0,93981.0,0.05313]
[1732127209757,0.053127,93987.0,93984.0,0.053128]
[1732127210146,0.3608,93992.0,93982.0,0.14948]
[1732127210347,0.053128,93984.0,93982.0,0.14948]
[1732127211444,0.05313,93981.0,93980.0,0.00159579]
[1732127211754,0.41393,93981.0,93980.0,0.00159579]
[1732127213674,0.46143338,93981.0,93980.0,0.00159579]
[1732127213953,0.053142,93960.0,93959.0,0.005]
[1732127214157,0.3608,93973.0,93952.0,0.3608]
[1732127214347,0.053142,93959.0,93958.0,0.05323814]
[1732127215561,0.053142,93959.0,93958.0,9.514e-05]
[1732127216744,0.413942,93959.0,93958.0,9.514e-05]
[1732127217640,0.733222,93959.0,93958.0,9.514e-05]
[1732127217954,0.053154,93939.0,93937.0,0.14932]
[1732127218555,0.053154,93939.0,93930.0,0.402]
[1732127218871,0.053148,93950.0,93945.0,0.05315]
[1732127219044,9.514e-05,93949.0,93946.0,0.053149]
[1732127219358,0.05324314,93949.0,93946.0,0.053149]
[1732127219854,0.05324314,93949.0,93947.0,0.053149]
[1732127220240,9.514e-05,93949.0,93947.0,0.053149]
[1732127220645,0.05324314,93949.0,93947.0,0.053149]
[1732127220850,0.053151,93944.0,93942.0,0.00124]
[1732127221763,9.514e-05,93949.0,93948.0,0.053149]
[1732127222248,9.514e-05,93949.0,93948.0,0.20834135]
[1732127222553,9.514e-05,93949.0,93948.0,0.053149]
[1732127222759,9.514e-05,93949.0,93942.0,0.00124]
[1732127222950,0.053151,93944.0,93943.0,0.053151]
[1732127223550,0.3608,93948.0,93942.0,0.00124]
[1732127223551,9.514e-05,93949.0,93947.0,0.053149]
[1732127223852,0.3608,93969.0,93948.0,0.51599235]
[1732127224054,0.413927,93986.0,93965.0,0.15519235]
[1732127224258,0.3608,93988.0,93974.0,0.15519235]
[1732127224460,0.3608,93988.0,93987.0,0.053127]
[1732127224959,0.05313,93982.0,93967.0,0.053138]
[1732127225149,0.05313,93982.0,93966.0,0.23302]
[1732127225150,0.08792283,93991.0,93974.0,0.15519235]
[1732127225344,0.03479783,93991.0,93989.0,0.053125]
[1732127225657,0.3608,93991.0,93989.0,0.053125]
[1732127226049,0.03432067,93998.0,93997.0,0.053121]
[1732127226354,0.3608,94016.0,93997.0,0.053121]
[1732127226355,0.053117,94005.0,93999.0,0.05312]
[1732127226660,0.053114,94009.0,93999.0,0.05312]
[1732127226861,0.0417,94015.0,93999.0,0.05312]
[1732127227046,0.053113,94011.0,93999.0,0.20244]
[1732127227251,0.3608,94016.0,93999.0,0.20244]
[1732127227561,0.053118,94002.0,93999.0,0.20244]
[1732127227761,0.03409396,94014.0,93999.0,0.20244]
[1732127228055,0.413916,94006.0,93999.0,0.20244]
[1732127228256,0.3608,94006.0,93999.0,0.20244]
[1732127228755,0.053118,94003.0,93999.0,0.20244]
[1732127228955,0.053118,94003.0,93999.0,0.56324]
[1732127229861,0.3608,94006.0,93999.0,0.56324]
[1732127230060,0.3608,94006.0,93999.0,0.20244]
[1732127230458,0.053116,94005.0,93999.0,0.20244]
[1732127230653,0.053116,94005.0,93999.0,0.56324]
[1732127231163,0.3608,94006.0,93973.0,0.005]
[1732127231164,0.31916,93999.0,93973.0,0.005]
[1732127231354,0.31916,93999.0,93963.0,0.005]
[1732127231355,0.05314,93964.0,93963.0,0.005]
[1732127231676,0.053147,93951.0,93950.0,0.00159648]
[1732127232459,0.06596388,93951.0,93950.0,0.00159648]
[1732127232663,0.41990359,93951.0,93950.0,0.00159648]
[1732127232856,0.20834335,93943.0,93929.0,9.735e-05]
[1732127233165,0.413951,93943.0,93936.0,0.053155]
[1732127233349,0.413951,93943.0,93929.0,9.735e-05]
[1732127233350,0.413951,93943.0,93940.0,0.053153]
[1732127233662,0.42673497,93943.0,93940.0,0.053153]
[1732127233867,0.053149,93947.0,93929.0,0.1552897]
[1732127234163,0.053149,93947.0,93944.0,0.053151]
[1732127234363,0.05315,93946.0,93944.0,0.053151]
[1732127234766,0.053151,93944.0,93933.0,0.053157]
[1732127234955,0.053151,93944.0,93929.0,9.735e-05]
[1732127234956,0.053148,93950.0,93945.0,0.05315]
[1732127235155,0.3608,93952.0,93929.0,9.735e-05]
[1732127235352,0.05315,93946.0,93943.0,0.053151]
[1732127235556,0.05315,93946.0,93929.0,9.735e-05]
[1732127235557,0.05315,93946.0,93935.0,0.14932]
[1732127235762,0.05315,93945.0,93944.0,0.05315]
[1732127236153,0.05315,93945.0,93935.0,0.14932]
[1732127236360,0.413951,93943.0,93935.0,0.14932]
[1732127237655,0.413951,93943.0,93929.0,9.735e-05]
[1732127237857,0.053157,93934.0,93929.0,9.735e-05]
[1732127238058,0.3608,93930.0,93929.0,0.05325635]
[1732127238261,0.3608,93930.0,93929.0,9.735e-05]
[1732127241854,0.37406664,93930.0,93929.0,9.735e-05]
[1732127242360,0.4081595,93930.0,93929.0,9.735e-05]
[1732127243766,0.39489286,93930.0,93929.0,9.735e-05]
[1732127244861,0.40815296,93930.0,93929.0,9.735e-05]
[1732127245067,0.421413,93930.0,93929.0,9.735e-05]
[1732127246152,0.740813,93930.0,93905.0,0.053173]
[1732127246362,0.3608,93908.0,93905.0,0.053173]
[1732127246679,0.3608,93916.0,93904.0,0.97106]
[1732127246865,0.3608,93916.0,93910.0,0.05317]
[1732127246866,0.053168,93914.0,93910.0,0.05317]
[1732127247067,0.01327626,93913.0,93910.0,0.05317]
[1732127247363,0.06653011,93912.0,93910.0,0.05317]
[1732127247871,8.867e-05,93912.0,93910.0,0.05317]
[1732127248056,0.01330126,93911.0,93910.0,0.05317]
[1732127248462,0.0132999,93911.0,93910.0,0.05317]
[1732127249470,8.867e-05,93912.0,93910.0,0.05317]
[1732127250875,0.053173,93906.0,93904.0,0.9711]
[1732127251180,8.867e-05,93912.0,93907.0,0.053172]
[1732127251181,0.05317,93910.0,93907.0,0.053172]
[1732127251474,0.05317,93910.0,93908.0,0.053171]
[1732127251957,8.867e-05,93912.0,93904.0,0.97102]
[1732127252161,8.867e-05,93912.0,93904.0,0.96958]
[1732127252362,0.053173,93906.0,93904.0,0.96958]
[1732127254069,0.3608,93908.0,93904.0,0.96958]
[1732127254070,0.053173,93905.0,93904.0,0.96958]
[1732127254773,8.867e-05,93912.0,93904.0,0.96958]
[1732127255073,8.867e-05,93912.0,93911.0,0.05317]
[1732127255470,0.01361109,93912.0,93911.0,0.05317]
[1732127255865,8.867e-05,93912.0,93911.0,0.05317]
[1732127257775,0.0134558,93912.0,93911.0,0.05317]
[1732127257971,8.867e-05,93912.0,93911.0,0.05317]
[1732127259264,0.3608,93927.0,93925.0,0.053161]
[1732127259469,0.053157,93933.0,93926.0,0.044]
[1732127259669,0.07440108,93932.0,93931.0,0.053158]
[1732127259876,0.06643667,93932.0,93931.0,0.053158]
[1732127260475,0.0877399,93932.0,93931.0,0.053158]
[1732127260673,0.053158,93932.0,93931.0,0.053158]
[1732127260879,0.07446354,93932.0,93931.0,0.053158]
[1732127261083,0.0877795,93932.0,93931.0,0.053158]
[1732127261669,0.0877795,93932.0,93926.0,0.044]
[1732127261670,0.0346215,93932.0,93926.0,0.044]
[1732127261975,0.41396,93927.0,93926.0,0.044]
[1732127262182,0.4485815,93927.0,93926.0,0.044]
[1732127262884,0.4485815,93927.0,93926.0,0.097161]
[1732127263082,0.3954215,93927.0,93926.0,0.097161]
[1732127263773,0.38216711,93927.0,93926.0,0.097161]
[1732127264281,0.42988425,93927.0,93917.0,0.0432]
[1732127264474,0.42988425,93927.0,93921.0,0.053163]
[1732127264475,0.053164,93922.0,93921.0,0.053163]
[1732127264777,0.053157,93933.0,93932.0,0.053156]
[1732127264980,0.03413757,93933.0,93917.0,0.0432]
[1732127265183,0.01312983,93932.0,93917.0,0.096366]
[1732127265379,0.01312983,93931.0,93930.0,0.053159]
[1732127265769,0.01312983,93931.0,93930.0,0.202519]
[1732127265968,0.01650405,93947.0,93945.0,0.05315]
[1732127266178,0.02099798,93946.0,93945.0,0.05315]
[1732127266380,0.03460165,93954.0,93945.0,0.05315]
[1732127266568,0.02100059,93953.0,93952.0,0.053146]
[1732127267280,0.02072943,93953.0,93952.0,0.053146]
[1732127267486,0.3608,93958.0,93957.0,0.053143]
[1732127267971,0.46218964,93958.0,93950.0,0.053147]
[1732127268174,0.46218964,93958.0,93950.0,0.14936]
[1732127268980,0.3608,93958.0,93950.0,0.14936]
[1732127269682,0.053146,93952.0,93950.0,0.14936]
[1732127269881,0.053146,93952.0,93950.0,0.202507]
[1732127270077,0.413943,93958.0,93950.0,0.14936]
[1732127270281,0.3608,93958.0,93950.0,0.14936]
[1732127270486,0.053146,93953.0,93951.0,0.053147]
[1732127271183,0.3608,93958.0,93941.0,0.0433]
[1732127271184,0.15480416,93956.0,93941.0,0.0433]
[1732127271392,0.41395,93948.0,93947.0,0.053149]
[1732127271987,0.3608,93948.0,93947.0,0.053149]
[1732127272171,0.3608,93948.0,93932.0,0.453858]
[1732127272172,0.3608,93948.0,93943.0,0.053151]
[1732127272372,0.3608,93948.0,93946.0,0.05315]
[1732127273468,0.3608,93958.0,93937.0,0.18491584]
[1732127273674,0.3608,93958.0,93938.0,0.15480416]
[1732127273872,0.3608,93958.0,93955.0,0.053145]
[1732127274178,0.3608,93958.0,93953.0,0.053145]
[1732127274373,0.3608,93958.0,93956.0,0.053144]
[1732127274678,0.053145,93955.0,93952.0,0.053146]
[1732127274879,0.3608,93958.0,93940.0,0.3608]
[1732127275096,0.3608,93947.0,93945.0,0.05315]
[1732127275278,0.05315,93945.0,93944.0,0.1492]
[1732127275782,0.053154,93940.0,93939.0,0.053153]
[1732127275980,0.053154,93940.0,93937.0,0.03559584]
[1732127275981,0.3608,93947.0,93935.0,0.1492]
[1732127276177,0.053155,93936.0,93935.0,0.1492]
[1732127276883,0.053156,93935.0,93934.0,0.053156]
[1732127279284,0.053159,93930.0,93928.0,0.053159]
[1732127279492,0.053161,93926.0,93925.0,0.202361]
[1732127280083,0.3608,93930.0,93929.0,0.053159]
[1732127280384,0.413959,93930.0,93929.0,0.053159]
[1732127281287,0.053171,93908.0,93907.0,0.043]
[1732127281586,0.3608,93918.0,93907.0,0.043]
[1732127281777,0.15480416,93926.0,93910.0,0.05317]
[1732127281778,0.05317,93911.0,93910.0,0.05317]
[1732127282485,0.3608,93921.0,93907.0,0.043]
[1732127282783,0.11743078,93929.0,93907.0,0.043]
[1732127282784,0.3608,93923.0,93907.0,0.043]
[1732127282989,0.053168,93914.0,93908.0,0.053171]
[1732127283184,0.053168,93914.0,93907.0,0.043]
[1732127283682,0.053168,93915.0,93913.0,0.053168]
[1732127283886,0.39535433,93923.0,93907.0,0.043]
[1732127284088,0.02126122,93931.0,93909.0,0.86858025]
[1732127284282,0.053158,93931.0,93930.0,0.053158]
[1732127284483,0.053158,93931.0,93918.0,0.3608]
[1732127284484,0.3608,93934.0,93933.0,0.053157]
[1732127284687,0.3608,93943.0,93935.0,0.053155]
[1732127284985,0.3608,93943.0,93918.0,0.3608]
[1732127284986,0.39556335,93943.0,93918.0,0.3608]
[1732127285181,0.053153,93940.0,93939.0,0.053154]
[1732127285681,0.39556335,93943.0,93942.0,0.053152]
[1732127285888,0.39556335,93943.0,93936.0,0.053155]
[1732127286092,0.39556335,93943.0,93928.0,0.14924]
[1732127286093,0.3608,93943.0,93941.0,0.053152]
[1732127286297,0.3608,93943.0,93928.0,0.14924]
[1732127286298,0.053147,93952.0,93951.0,0.053146]
[1732127286589,0.3608,93953.0,93951.0,0.053146]
[1732127286978,0.413946,93953.0,93952.0,0.0393]
[1732127287184,0.3608,93953.0,93945.0,0.20239]
[1732127287382,0.053149,93948.0,93945.0,0.14924]
[1732127287582,0.3608,93953.0,93945.0,0.14924]
[1732127287782,0.05315,93946.0,93945.0,0.14924]
[1732127287980,0.3608,93953.0,93945.0,0.14924]
[1732127288184,0.053147,93952.0,93950.0,0.053147]
[1732127288691,0.3608,93953.0,93945.0,0.14924]
[1732127288887,0.053148,93949.0,93945.0,0.20239]
[1732127289095,0.053148,93949.0,93945.0,0.14924]
[1732127289293,0.053148,93949.0,93947.0,0.053149]
[1732127290387,0.3608,93953.0,93945.0,0.14924]
[1732127290584,0.05315,93947.0,93945.0,0.20239]
[1732127291599,0.46220566,93953.0,93949.0,0.053148]
[1732127291892,0.053147,93951.0,93949.0,0.053148]
[1732127292693,0.3608,93953.0,93942.0,0.0419]
[1732127292884,0.053149,93947.0,93943.0,0.053151]
[1732127293083,0.053149,93947.0,93938.0,0.0408]
[1732127293084,0.413951,93944.0,93925.0,0.00152]
[1732127293382,0.413958,93932.0,93924.0,0.054602]
[1732127293585,0.413958,93932.0,93925.0,0.053161]
[1732127293792,0.413958,93932.0,93919.0,0.0419]
[1732127294295,0.413958,93932.0,93916.0,0.49448072]
[1732127294296,0.413958,93932.0,93923.0,0.5699468]
[1732127294485,0.413958,93932.0,93920.0,0.34528072]
[1732127294486,0.413958,93932.0,93924.0,0.34528072]
[1732127294686,0.44832175,93932.0,93915.0,0.34528072]
[1732127294887,0.44832175,93932.0,93922.0,0.50862917]
[1732127295088,0.44832175,93932.0,93917.0,0.34528072]
[1732127295292,0.44832175,93932.0,93912.0,0.5699468]
[1732127295293,0.053168,93913.0,93912.0,0.5699468]
[1732127295492,0.053168,93913.0,93912.0,0.35054102]
[1732127295692,0.053169,93912.0,93910.0,0.0419]
[1732127295893,0.413966,93918.0,93910.0,0.0419]
[1732127296088,0.3608,93918.0,93910.0,0.0419]
[1732127296303,0.053166,93917.0,93915.0,0.053167]
[1732127296497,0.053162,93924.0,93921.0,0.053164]
[1732127296691,0.413952,93943.0,93920.0,0.10140566]
[1732127296692,0.3608,93943.0,93920.0,0.10140566]
[1732127296889,0.053156,93935.0,93923.0,0.053163]
[1732127297098,0.053156,93935.0,93921.0,0.35054102]
[1732127297099,0.3608,93943.0,93924.0,0.35054102]
[1732127297287,0.39643506,93943.0,93922.0,0.92048782]
[1732127297496,0.3608,93943.0,93942.0,0.053152]
[1732127297695,0.053146,93952.0,93936.0,0.10140566]
[1732127297996,0.3608,93959.0,93938.0,0.3608]
[1732127298199,0.053144,93956.0,93955.0,0.053145]
[1732127298905,0.053147,93952.0,93941.0,0.053153]
[1732127299095,0.3608,93959.0,93949.0,0.053148]
[1732127299299,0.053146,93954.0,93939.0,0.0426]
[1732127299494,0.3608,93959.0,93944.0,0.10140566]
[1732127299692,0.3608,93959.0,93958.0,0.053143]
[1732127303997,0.3608,93959.0,93945.0,0.09455]
[1732127303998,0.053145,93954.0,93949.0,0.14904]
[1732127304201,0.053145,93954.0,93953.0,0.053144]
[1732127304501,0.413942,93959.0,93958.0,0.053143]
[1732127304893,0.3608,93959.0,93949.0,0.14904]
[1732127305202,0.10140566,93960.0,93950.0,0.053147]
[1732127305405,0.3608,93951.0,93950.0,0.053147]
[1732127305992,0.053147,93952.0,93951.0,0.053147]
[1732127306201,0.053144,93957.0,93956.0,0.053143]
[1732127306792,0.413941,93962.0,93960.0,0.053141]
[1732127307109,0.3608,93962.0,93949.0,0.14904]
[1732127307314,0.3608,93962.0,93940.0,0.3608]
[1732127307315,0.10140566,93950.0,93940.0,0.3608]
[1732127307497,0.053148,93950.0,93942.0,0.0429]
[1732127307807,0.053145,93955.0,93942.0,0.0429]
[1732127308113,0.3608,93959.0,93942.0,0.0429]
[1732127308114,0.053146,93953.0,93952.0,0.053146]
[1732127308407,0.053147,93951.0,93948.0,0.053148]